[Event "Titled Tuesday Blitz March 22 Late 2022"]
[White "Spata, German"]
[Black "Chyngyz, Sultai"]
[WhiteFideId "113026"]
[BlackFideId "13803158"]
[WhiteElo "2238"]
[BlackElo "1365"]
[Result "1-0"]
[Round "03"]
[TimeControl "180+1"]
[Date "2022.03.22"]
[WhiteClock "0:00:11"]
[BlackClock "0:00:20"]

1. Nf3 {[%clk 0:03:00]}  Nf6 {[%clk 0:02:53]} 2. e3 {[%clk 0:03:00]}  g6 {[%clk 0:02:54]} 3. b3 {[%clk 0:02:56]}  Bg7 {[%clk 0:02:54]} 4. Bb2 {[%clk 0:02:57]}  O-O {[%clk 0:02:54]} 5. c4 {[%clk 0:02:57]}  d6 {[%clk 0:02:54]} 6. d4 {[%clk 0:02:57]}  Nc6 {[%clk 0:02:54]} 7. Be2 {[%clk 0:02:55]}  Bf5 {[%clk 0:02:52]} 8. d5 {[%clk 0:02:35]}  Nb4 {[%clk 0:02:50]} 9. Nd4 {[%clk 0:02:35]}  Ne4 {[%clk 0:02:46]} 10. O-O {[%clk 0:02:22]}  c5 {[%clk 0:02:41]} 11. dxc6 {[%clk 0:02:22]}  Nxc6 {[%clk 0:02:38]} 12. Nxc6 {[%clk 0:02:18]}  bxc6 {[%clk 0:02:36]} 13. Bxg7 {[%clk 0:02:18]}  Kxg7 {[%clk 0:02:36]} 14. f3 {[%clk 0:02:16]}  Nf6 {[%clk 0:02:35]} 15. e4 {[%clk 0:02:07]}  Be6 {[%clk 0:02:23]} 16. Nc3 {[%clk 0:02:07]}  Qb6+ {[%clk 0:02:21]} 17. Kh1 {[%clk 0:02:06]}  Qe3 {[%clk 0:02:20]} 18. Qc1 {[%clk 0:01:59]}  Qxc1 {[%clk 0:02:13]} 19. Raxc1 {[%clk 0:01:59]}  a5 {[%clk 0:02:12]} 20. Kg1 {[%clk 0:01:58]}  Nh5 {[%clk 0:02:09]} 21. Rfd1 {[%clk 0:01:53]}  Nf4 {[%clk 0:02:03]} 22. Bf1 {[%clk 0:01:52]}  Rfd8 {[%clk 0:01:55]} 23. Kf2 {[%clk 0:01:50]}  Rd7 {[%clk 0:01:45]} 24. Na4 {[%clk 0:01:43]}  Rb8 {[%clk 0:01:41]} 25. g3 {[%clk 0:01:39]}  Nh3+ {[%clk 0:01:27]} 26. Bxh3 {[%clk 0:01:33]}  Bxh3 {[%clk 0:01:23]} 27. g4 {[%clk 0:01:33]}  h5 {[%clk 0:01:21]} 28. gxh5 {[%clk 0:01:13]}  gxh5 {[%clk 0:01:22]} 29. Rg1+ {[%clk 0:01:09]}  Kh7 {[%clk 0:01:22]} 30. Rg5 {[%clk 0:01:04]}  Kh6 {[%clk 0:01:22]} 31. Rcg1 {[%clk 0:00:53]}  c5 {[%clk 0:01:19]} 32. Nc3 {[%clk 0:00:46]}  e6 {[%clk 0:01:10]} 33. Ne2 {[%clk 0:00:37]}  Bg4 {[%clk 0:01:08]} 34. h4 {[%clk 0:00:23]}  f6 {[%clk 0:01:07]} 35. R5xg4 {[%clk 0:00:15]}  hxg4 {[%clk 0:01:05]} 36. fxg4 {[%clk 0:00:12]}  d5 {[%clk 0:01:03]} 37. exd5 {[%clk 0:00:07]}  exd5 {[%clk 0:01:04]} 38. Rd1 {[%clk 0:00:06]}  d4 {[%clk 0:01:02]} 39. Nf4 {[%clk 0:00:07]}  Re8 {[%clk 0:01:02]} 40. Nd5 {[%clk 0:00:06]}  Re6 {[%clk 0:00:59]} 41. Kf3 {[%clk 0:00:05]}  Ra7 {[%clk 0:00:52]} 42. Kf4 {[%clk 0:00:05]}  a4 {[%clk 0:00:48]} 43. g5+ {[%clk 0:00:06]}  fxg5+ {[%clk 0:00:47]} 44. hxg5+ {[%clk 0:00:06]}  Kg6 {[%clk 0:00:46]} 45. Rh1 {[%clk 0:00:05]}  Rf7+ {[%clk 0:00:41]} 46. Nf6 {[%clk 0:00:06]}  Rexf6+ {[%clk 0:00:37]} 47. gxf6 {[%clk 0:00:05]}  Rxf6+ {[%clk 0:00:35]} 48. Ke4 {[%clk 0:00:06]}  axb3 {[%clk 0:00:35]} 49. axb3 {[%clk 0:00:07]}  Rd6 {[%clk 0:00:31]} 50. Kd3 {[%clk 0:00:04]}  Kf5 {[%clk 0:00:31]} 51. Re1 {[%clk 0:00:04]}  Kf4 {[%clk 0:00:30]} 52. Re8 {[%clk 0:00:04]}  Rf6 {[%clk 0:00:29]} 53. Rc8 {[%clk 0:00:04]}  Rf5 {[%clk 0:00:29]} 54. b4 {[%clk 0:00:04]}  cxb4 {[%clk 0:00:27]} 55. Kxd4 {[%clk 0:00:05]}  Kf3 {[%clk 0:00:26]} 56. c5 {[%clk 0:00:05]}  Ke2 {[%clk 0:00:25]} 57. c6 {[%clk 0:00:05]}  Kd2 {[%clk 0:00:25]} 58. Kc4 {[%clk 0:00:05]}  Rf4+ {[%clk 0:00:24]} 59. Kb3 {[%clk 0:00:05]}  Kc1 {[%clk 0:00:20]} 60. c7 {[%clk 0:00:05]}  Rf7 {[%clk 0:00:18]} 61. Kxb4 {[%clk 0:00:05]}  Kc2 {[%clk 0:00:18]} 62. Kc5 {[%clk 0:00:05]}  Kc3 {[%clk 0:00:18]} 63. Kd6 {[%clk 0:00:06]}  Kc4 {[%clk 0:00:17]} 64. Rd8 {[%clk 0:00:05]}  Rf6+ {[%clk 0:00:16]} 65. Ke5 {[%clk 0:00:05]}  Rc6 {[%clk 0:00:15]} 66. c8=Q {[%clk 0:00:06]}  Rxc8 {[%clk 0:00:15]} 67. Rxc8+ {[%clk 0:00:07]}  Kb5 {[%clk 0:00:16]} 68. Rd8 {[%clk 0:00:07]}  Kb4 {[%clk 0:00:16]} 69. Rd1 {[%clk 0:00:08]}  Kc5 {[%clk 0:00:17]} 70. Ke4 {[%clk 0:00:08]}  Kb4 {[%clk 0:00:18]} 71. Rc1 {[%clk 0:00:08]}  Kb3 {[%clk 0:00:18]} 72. Rc8 {[%clk 0:00:09]}  Kb4 {[%clk 0:00:18]} 73. Kd5 {[%clk 0:00:09]}  Kb5 {[%clk 0:00:19]} 74. Rb8+ {[%clk 0:00:09]}  Ka6 {[%clk 0:00:18]} 75. Rb1 {[%clk 0:00:10]}  Ka7 {[%clk 0:00:19]} 76. Kc6 {[%clk 0:00:10]}  Ka8 {[%clk 0:00:19]} 77. Kc7 {[%clk 0:00:11]}  Ka7 {[%clk 0:00:20]} 78. Ra1# {[%clk 0:00:11]} 1-0


[Site "https://www.chess.com"]

[Event "Titled Tuesday Blitz March 22 Late 2022"]
[White "Taichman, Ori"]
[Black "Gatterer, Florian"]
[WhiteFideId "2804069"]
[BlackFideId "811688"]
[WhiteElo "2227"]
[BlackElo "2218"]
[Result "1-0"]
[Round "03"]
[TimeControl "180+1"]
[Date "2022.03.22"]
[WhiteClock "0:01:38"]
[BlackClock "0:00:09"]

1. e4 {[%clk 0:03:00]}  e5 {[%clk 0:02:58]} 2. d4 {[%clk 0:03:01]}  exd4 {[%clk 0:02:57]} 3. Qxd4 {[%clk 0:03:01]}  Nc6 {[%clk 0:02:56]} 4. Qe3 {[%clk 0:03:02]}  Nf6 {[%clk 0:02:47]} 5. Nc3 {[%clk 0:03:02]}  Bb4 {[%clk 0:02:44]} 6. Bd2 {[%clk 0:03:02]}  O-O {[%clk 0:02:40]} 7. O-O-O {[%clk 0:03:03]}  d6 {[%clk 0:02:40]} 8. Qg3 {[%clk 0:03:02]}  Bg4 {[%clk 0:02:26]} 9. f3 {[%clk 0:03:02]}  Be6 {[%clk 0:02:26]} 10. Nge2 {[%clk 0:03:01]}  Nh5 {[%clk 0:02:19]} 11. Qe1 {[%clk 0:02:54]}  a5 {[%clk 0:02:07]} 12. g4 {[%clk 0:02:54]}  Nf6 {[%clk 0:02:05]} 13. h4 {[%clk 0:02:52]}  Ne5 {[%clk 0:02:02]} 14. Qg3 {[%clk 0:02:51]}  Nc4 {[%clk 0:02:02]} 15. Bg5 {[%clk 0:02:50]}  h6 {[%clk 0:01:56]} 16. f4 {[%clk 0:02:32]}  Bxg4 {[%clk 0:01:15]} 17. Nd5 {[%clk 0:02:11]}  h5 {[%clk 0:01:03]} 18. Bxf6 {[%clk 0:02:05]}  gxf6 {[%clk 0:01:03]} 19. Bh3 {[%clk 0:02:04]}  f5 {[%clk 0:00:56]} 20. exf5 {[%clk 0:02:03]}  c6 {[%clk 0:00:46]} 21. Bxg4 {[%clk 0:02:00]}  cxd5 {[%clk 0:00:45]} 22. Bxh5+ {[%clk 0:01:47]}  Kh8 {[%clk 0:00:42]} 23. Qg5 {[%clk 0:01:47]}  Qxg5 {[%clk 0:00:37]} 24. hxg5 {[%clk 0:01:48]}  Kg8 {[%clk 0:00:30]} 25. f6 {[%clk 0:01:47]}  Ne3 {[%clk 0:00:19]} 26. Rd3 {[%clk 0:01:42]}  Nc4 {[%clk 0:00:16]} 27. Rdh3 {[%clk 0:01:41]}  Bd2+ {[%clk 0:00:11]} 28. Kb1 {[%clk 0:01:40]}  Rfe8 {[%clk 0:00:11]} 29. Bg6 {[%clk 0:01:36]}  fxg6 {[%clk 0:00:10]} 30. Rh8+ {[%clk 0:01:36]}  Kf7 {[%clk 0:00:09]} 31. R1h7+ {[%clk 0:01:37]}  Ke6 {[%clk 0:00:09]} 32. Nd4# {[%clk 0:01:38]} 1-0


[Site "https://www.chess.com"]

[Event "Titled Tuesday Blitz March 22 Late 2022"]
[White "Tari, Aryan"]
[Black "Goryachkina, Aleksandra"]
[WhiteFideId "1510045"]
[BlackFideId "4147103"]
[WhiteElo "2567"]
[BlackElo "2426"]
[Result "1-0"]
[Round "03"]
[TimeControl "180+1"]
[Date "2022.03.22"]
[WhiteClock "0:00:06"]
[BlackClock "0:00:03"]

1. Nf3 {[%clk 0:03:00]}  d5 {[%clk 0:02:59]} 2. b3 {[%clk 0:02:57]}  Bg4 {[%clk 0:02:57]} 3. Bb2 {[%clk 0:02:54]}  Nd7 {[%clk 0:02:48]} 4. e3 {[%clk 0:02:51]}  e6 {[%clk 0:02:45]} 5. c4 {[%clk 0:02:50]}  c6 {[%clk 0:02:42]} 6. Be2 {[%clk 0:02:43]}  Ngf6 {[%clk 0:02:42]} 7. d4 {[%clk 0:02:09]}  Bd6 {[%clk 0:02:40]} 8. O-O {[%clk 0:02:09]}  h6 {[%clk 0:02:34]} 9. Ne5 {[%clk 0:02:07]}  Bxe2 {[%clk 0:02:30]} 10. Qxe2 {[%clk 0:02:08]}  O-O {[%clk 0:02:28]} 11. Nd2 {[%clk 0:02:08]}  Qe7 {[%clk 0:02:14]} 12. a3 {[%clk 0:02:06]}  a5 {[%clk 0:02:03]} 13. f4 {[%clk 0:02:06]}  c5 {[%clk 0:01:50]} 14. Kh1 {[%clk 0:02:02]}  Rad8 {[%clk 0:01:28]} 15. Nd3 {[%clk 0:01:42]}  Ne4 {[%clk 0:01:18]} 16. Nf3 {[%clk 0:01:19]}  Ndf6 {[%clk 0:00:56]} 17. dxc5 {[%clk 0:01:17]}  Nxc5 {[%clk 0:00:53]} 18. Nxc5 {[%clk 0:00:52]}  Bxc5 {[%clk 0:00:54]} 19. cxd5 {[%clk 0:00:50]}  exd5 {[%clk 0:00:48]} 20. Nd4 {[%clk 0:00:45]}  Rfe8 {[%clk 0:00:44]} 21. Rae1 {[%clk 0:00:43]}  Bxd4 {[%clk 0:00:20]} 22. Bxd4 {[%clk 0:00:44]}  Ne4 {[%clk 0:00:20]} 23. Qb2 {[%clk 0:00:44]}  f6 {[%clk 0:00:20]} 24. Rc1 {[%clk 0:00:44]}  Rc8 {[%clk 0:00:20]} 25. b4 {[%clk 0:00:43]}  axb4 {[%clk 0:00:18]} 26. axb4 {[%clk 0:00:44]}  Rc4 {[%clk 0:00:18]} 27. b5 {[%clk 0:00:25]}  Rec8 {[%clk 0:00:17]} 28. Kg1 {[%clk 0:00:26]}  Qc7 {[%clk 0:00:13]} 29. b6 {[%clk 0:00:24]}  Qc6 {[%clk 0:00:13]} 30. Ra1 {[%clk 0:00:19]}  Rc2 {[%clk 0:00:11]} 31. Qb4 {[%clk 0:00:18]}  Qe6 {[%clk 0:00:10]} 32. h3 {[%clk 0:00:16]}  Ng3 {[%clk 0:00:06]} 33. Rf3 {[%clk 0:00:12]}  Ne2+ {[%clk 0:00:05]} 34. Kh2 {[%clk 0:00:12]}  Qe4 {[%clk 0:00:04]} 35. Raf1 {[%clk 0:00:07]}  R8c4 {[%clk 0:00:03]} 36. Qd6 {[%clk 0:00:04]}  Nxd4 {[%clk 0:00:02]} 37. exd4 {[%clk 0:00:05]}  Qxd4 {[%clk 0:00:03]} 38. Qd8+ {[%clk 0:00:05]}  Kh7 {[%clk 0:00:03]} 39. Qd7 {[%clk 0:00:05]}  Rb4 {[%clk 0:00:03]} 40. Qf5+ {[%clk 0:00:06]} 1-0


[Site "https://www.chess.com"]

[Event "Titled Tuesday Blitz March 22 Late 2022"]
[White "Thavandiran, Shiyam"]
[Black "Milosevic, Milos"]
[WhiteFideId "2605058"]
[BlackFideId "964875"]
[WhiteElo "2357"]
[BlackElo "2237"]
[Result "1/2-1/2"]
[Round "03"]
[TimeControl "180+1"]
[Date "2022.03.22"]
[WhiteClock "0:00:06"]
[BlackClock "0:00:20"]

1. e4 {[%clk 0:03:00]}  c5 {[%clk 0:02:59]} 2. Nf3 {[%clk 0:03:00]}  Nc6 {[%clk 0:02:57]} 3. d4 {[%clk 0:02:57]}  cxd4 {[%clk 0:02:57]} 4. Nxd4 {[%clk 0:02:58]}  Nf6 {[%clk 0:02:57]} 5. Nc3 {[%clk 0:02:58]}  e5 {[%clk 0:02:55]} 6. Ndb5 {[%clk 0:02:58]}  d6 {[%clk 0:02:55]} 7. Bg5 {[%clk 0:02:58]}  a6 {[%clk 0:02:56]} 8. Na3 {[%clk 0:02:58]}  b5 {[%clk 0:02:55]} 9. Nd5 {[%clk 0:02:59]}  Be7 {[%clk 0:02:55]} 10. Bxf6 {[%clk 0:02:59]}  Bxf6 {[%clk 0:02:56]} 11. c4 {[%clk 0:02:59]}  b4 {[%clk 0:02:55]} 12. Nc2 {[%clk 0:03:00]}  O-O {[%clk 0:02:55]} 13. Be2 {[%clk 0:03:00]}  a5 {[%clk 0:02:48]} 14. O-O {[%clk 0:03:00]}  Bg5 {[%clk 0:02:45]} 15. Qd3 {[%clk 0:02:58]}  Ne7 {[%clk 0:02:36]} 16. Rad1 {[%clk 0:02:56]}  Nxd5 {[%clk 0:02:34]} 17. Qxd5 {[%clk 0:02:54]}  Rb8 {[%clk 0:02:34]} 18. Qxd6 {[%clk 0:02:52]}  Qxd6 {[%clk 0:02:34]} 19. Rxd6 {[%clk 0:02:53]}  b3 {[%clk 0:02:32]} 20. axb3 {[%clk 0:02:52]}  Rxb3 {[%clk 0:02:32]} 21. Rb1 {[%clk 0:02:45]}  a4 {[%clk 0:02:31]} 22. Na3 {[%clk 0:02:27]}  Be7 {[%clk 0:02:27]} 23. Rd3 {[%clk 0:02:25]}  Rxd3 {[%clk 0:02:06]} 24. Bxd3 {[%clk 0:02:25]}  Rd8 {[%clk 0:02:04]} 25. Bc2 {[%clk 0:02:21]}  Bb7 {[%clk 0:02:04]} 26. Bxa4 {[%clk 0:02:07]}  Bxe4 {[%clk 0:02:04]} 27. Rd1 {[%clk 0:02:07]}  Rxd1+ {[%clk 0:01:57]} 28. Bxd1 {[%clk 0:02:08]}  Bd3 {[%clk 0:01:50]} 29. g3 {[%clk 0:01:39]}  Bxa3 {[%clk 0:01:47]} 30. bxa3 {[%clk 0:01:40]}  Bxc4 {[%clk 0:01:47]} 31. f4 {[%clk 0:01:36]}  exf4 {[%clk 0:01:42]} 32. gxf4 {[%clk 0:01:37]}  Kf8 {[%clk 0:01:42]} 33. Kf2 {[%clk 0:01:37]}  Ke7 {[%clk 0:01:41]} 34. Ke3 {[%clk 0:01:37]}  Kd6 {[%clk 0:01:39]} 35. Kd4 {[%clk 0:01:37]}  Ba6 {[%clk 0:01:38]} 36. Bc2 {[%clk 0:01:09]}  h6 {[%clk 0:01:37]} 37. h4 {[%clk 0:01:08]}  f6 {[%clk 0:01:31]} 38. f5 {[%clk 0:00:53]}  Bc8 {[%clk 0:01:31]} 39. a4 {[%clk 0:00:51]}  Kc6 {[%clk 0:01:16]} 40. Kc4 {[%clk 0:00:38]}  Bd7 {[%clk 0:01:08]} 41. a5 {[%clk 0:00:36]}  Bc8 {[%clk 0:01:08]} 42. Be4+ {[%clk 0:00:32]}  Kc7 {[%clk 0:01:08]} 43. Kc5 {[%clk 0:00:32]}  Ba6 {[%clk 0:01:08]} 44. Bc2 {[%clk 0:00:27]}  Bf1 {[%clk 0:01:03]} 45. Kd5 {[%clk 0:00:24]}  Bh3 {[%clk 0:00:49]} 46. Bd3 {[%clk 0:00:12]}  Kb7 {[%clk 0:00:36]} 47. Kd6 {[%clk 0:00:12]}  Ka7 {[%clk 0:00:30]} 48. Ke7 {[%clk 0:00:12]}  h5 {[%clk 0:00:30]} 49. Kf7 {[%clk 0:00:11]}  Bxf5 {[%clk 0:00:24]} 50. Bxf5 {[%clk 0:00:06]}  g5 {[%clk 0:00:25]} 51. Bd3 {[%clk 0:00:03]}  gxh4 {[%clk 0:00:24]} 52. Bf1 {[%clk 0:00:02]}  h3 {[%clk 0:00:23]} 53. Kxf6 {[%clk 0:00:02]}  h2 {[%clk 0:00:21]} 54. Bg2 {[%clk 0:00:02]}  Ka6 {[%clk 0:00:21]} 55. Bh1 {[%clk 0:00:03]}  h4 {[%clk 0:00:19]} 56. Kg5 {[%clk 0:00:04]}  Kb5 {[%clk 0:00:19]} 57. Kxh4 {[%clk 0:00:05]}  Ka6 {[%clk 0:00:20]} 58. Kh3 {[%clk 0:00:05]}  Kb5 {[%clk 0:00:20]} 59. Kxh2 {[%clk 0:00:06]}  Ka6 {[%clk 0:00:20]} 60. Kg1 {[%clk 0:00:06]}  Kb5 {[%clk 0:00:20]} 61. a6 {[%clk 0:00:06]}  Kxa6 {[%clk 0:00:20]} 1/2-1/2


[Site "https://www.chess.com"]

[Event "Titled Tuesday Blitz March 22 Late 2022"]
[White "Toncheva, Nadya"]
[Black "Marcziter, Dmitrii"]
[WhiteFideId "2924056"]
[BlackFideId "13900765"]
[WhiteElo "1884"]
[BlackElo "2155"]
[Result "0-1"]
[Round "03"]
[TimeControl "180+1"]
[Date "2022.03.22"]
[WhiteClock "0:00:01"]
[BlackClock "0:00:46"]

1. e4 {[%clk 0:03:00]}  c5 {[%clk 0:02:59]} 2. Nf3 {[%clk 0:03:00]}  a6 {[%clk 0:02:59]} 3. c4 {[%clk 0:03:01]}  e6 {[%clk 0:02:59]} 4. Nc3 {[%clk 0:03:00]}  Qc7 {[%clk 0:02:58]} 5. d4 {[%clk 0:03:00]}  cxd4 {[%clk 0:02:59]} 6. Nxd4 {[%clk 0:03:01]}  Nf6 {[%clk 0:02:59]} 7. Be2 {[%clk 0:03:00]}  b6 {[%clk 0:02:59]} 8. O-O {[%clk 0:03:00]}  Bb7 {[%clk 0:03:00]} 9. f3 {[%clk 0:03:00]}  Nc6 {[%clk 0:02:59]} 10. Be3 {[%clk 0:02:58]}  Ne5 {[%clk 0:02:59]} 11. Rc1 {[%clk 0:02:57]}  Ng6 {[%clk 0:02:59]} 12. Qd2 {[%clk 0:02:57]}  h5 {[%clk 0:02:56]} 13. Rfd1 {[%clk 0:02:56]}  Bd6 {[%clk 0:02:52]} 14. h3 {[%clk 0:02:56]}  Bh2+ {[%clk 0:02:49]} 15. Kh1 {[%clk 0:02:47]}  h4 {[%clk 0:02:49]} 16. b4 {[%clk 0:02:32]}  Nh5 {[%clk 0:02:49]} 17. Bf2 {[%clk 0:02:32]}  Ng3+ {[%clk 0:02:42]} 18. Bxg3 {[%clk 0:02:23]}  Bxg3 {[%clk 0:02:42]} 19. Rc2 {[%clk 0:02:13]}  O-O {[%clk 0:02:38]} 20. Nb3 {[%clk 0:02:11]}  Rad8 {[%clk 0:02:30]} 21. c5 {[%clk 0:02:11]}  b5 {[%clk 0:02:28]} 22. a4 {[%clk 0:02:09]}  bxa4 {[%clk 0:02:24]} 23. Nxa4 {[%clk 0:02:08]}  Qe5 {[%clk 0:02:19]} 24. Qd6 {[%clk 0:02:02]}  Qg5 {[%clk 0:02:16]} 25. Qb6 {[%clk 0:01:59]}  Bc6 {[%clk 0:02:16]} 26. Nc3 {[%clk 0:01:47]}  Nf4 {[%clk 0:02:14]} 27. Bf1 {[%clk 0:01:46]}  Rb8 {[%clk 0:02:09]} 28. Qa5 {[%clk 0:01:42]}  f5 {[%clk 0:02:05]} 29. Nd4 {[%clk 0:01:41]}  Nh5 {[%clk 0:01:54]} 30. Nxc6 {[%clk 0:01:36]}  dxc6 {[%clk 0:01:54]} 31. Rd7 {[%clk 0:01:28]}  Be5 {[%clk 0:01:50]} 32. Ne2 {[%clk 0:01:27]}  Ng3+ {[%clk 0:01:49]} 33. Kg1 {[%clk 0:00:55]}  Nxe2+ {[%clk 0:01:48]} 34. Rxe2 {[%clk 0:00:49]}  Qg3 {[%clk 0:01:44]} 35. exf5 {[%clk 0:00:46]}  Qh2+ {[%clk 0:01:36]} 36. Kf2 {[%clk 0:00:45]}  Bg3+ {[%clk 0:01:36]} 37. Ke3 {[%clk 0:00:45]}  exf5 {[%clk 0:01:35]} 38. Kd2 {[%clk 0:00:42]}  Be5 {[%clk 0:01:32]} 39. Qa2+ {[%clk 0:00:39]}  Kh8 {[%clk 0:01:31]} 40. Qe6 {[%clk 0:00:28]}  Qf4+ {[%clk 0:01:29]} 41. Kc2 {[%clk 0:00:12]}  Rbe8 {[%clk 0:01:22]} 42. Qb3 {[%clk 0:00:08]}  Bf6 {[%clk 0:01:13]} 43. Rxe8 {[%clk 0:00:07]}  Rxe8 {[%clk 0:01:13]} 44. Bd3 {[%clk 0:00:08]}  Qe5 {[%clk 0:01:06]} 45. Rd6 {[%clk 0:00:03]}  a5 {[%clk 0:01:01]} 46. Rxf6 {[%clk 0:00:02]}  Qxf6 {[%clk 0:01:00]} 47. bxa5 {[%clk 0:00:01]}  Qd4 {[%clk 0:00:56]} 48. Qf7 {[%clk 0:00:01]}  Qxc5+ {[%clk 0:00:55]} 49. Kd2 {[%clk 0:00:01]}  Qxa5+ {[%clk 0:00:54]} 50. Kd1 {[%clk 0:00:01]}  Re1+ {[%clk 0:00:49]} 51. Kc2 {[%clk 0:00:01]}  Qc5+ {[%clk 0:00:48]} 52. Kd2 {[%clk 0:00:01]}  Qc1# {[%clk 0:00:46]} 0-1


[Site "https://www.chess.com"]

[Event "Titled Tuesday Blitz March 22 Late 2022"]
[White "Van den Dikkenberg, Erik"]
[Black "Aydin, Gulenay"]
[WhiteFideId "1005880"]
[BlackFideId "34557431"]
[WhiteElo "2118"]
[BlackElo "1429"]
[Result "0-1"]
[Round "03"]
[TimeControl "180+1"]
[Date "2022.03.22"]
[WhiteClock "0:00:03"]
[BlackClock "0:00:17"]

1. e4 {[%clk 0:03:00]}  c5 {[%clk 0:02:59]} 2. Be2 {[%clk 0:02:58]}  d6 {[%clk 0:02:59]} 3. f4 {[%clk 0:02:59]}  g6 {[%clk 0:02:59]} 4. Nf3 {[%clk 0:02:59]}  Bg7 {[%clk 0:02:59]} 5. O-O {[%clk 0:02:59]}  Nc6 {[%clk 0:02:59]} 6. Qe1 {[%clk 0:02:59]}  Nf6 {[%clk 0:03:00]} 7. d3 {[%clk 0:02:58]}  O-O {[%clk 0:02:59]} 8. Nc3 {[%clk 0:02:58]}  Rb8 {[%clk 0:02:59]} 9. Kh1 {[%clk 0:02:58]}  b5 {[%clk 0:02:58]} 10. Bd1 {[%clk 0:02:56]}  b4 {[%clk 0:02:55]} 11. Ne2 {[%clk 0:02:56]}  a5 {[%clk 0:02:55]} 12. Qh4 {[%clk 0:02:55]}  a4 {[%clk 0:02:42]} 13. f5 {[%clk 0:02:55]}  Ne5 {[%clk 0:02:31]} 14. Bh6 {[%clk 0:02:45]}  Neg4 {[%clk 0:02:07]} 15. Bxg7 {[%clk 0:02:31]}  Kxg7 {[%clk 0:02:08]} 16. Nf4 {[%clk 0:01:49]}  Ne3 {[%clk 0:01:42]} 17. Re1 {[%clk 0:01:42]}  Nxd1 {[%clk 0:01:41]} 18. Raxd1 {[%clk 0:01:41]}  gxf5 {[%clk 0:01:35]} 19. Ng5 {[%clk 0:01:19]}  h6 {[%clk 0:01:08]} 20. Nh5+ {[%clk 0:01:05]}  Nxh5 {[%clk 0:01:05]} 21. Qxh5 {[%clk 0:01:05]}  e5 {[%clk 0:00:59]} 22. Nh3 {[%clk 0:00:48]}  f4 {[%clk 0:00:56]} 23. g3 {[%clk 0:00:46]}  Bxh3 {[%clk 0:00:50]} 24. Qxh3 {[%clk 0:00:45]}  fxg3 {[%clk 0:00:50]} 25. Rg1 {[%clk 0:00:39]}  Kh7 {[%clk 0:00:49]} 26. Rxg3 {[%clk 0:00:37]}  Qc8 {[%clk 0:00:41]} 27. Qh5 {[%clk 0:00:28]}  Qe6 {[%clk 0:00:38]} 28. Rdg1 {[%clk 0:00:27]}  Rg8 {[%clk 0:00:36]} 29. Rf1 {[%clk 0:00:15]}  Rxg3 {[%clk 0:00:34]} 30. hxg3 {[%clk 0:00:15]}  Kg7 {[%clk 0:00:31]} 31. Rf5 {[%clk 0:00:14]}  Qg6 {[%clk 0:00:29]} 32. Qh3 {[%clk 0:00:13]}  b3 {[%clk 0:00:28]} 33. axb3 {[%clk 0:00:13]}  axb3 {[%clk 0:00:29]} 34. cxb3 {[%clk 0:00:13]}  Rxb3 {[%clk 0:00:30]} 35. g4 {[%clk 0:00:13]}  Rxb2 {[%clk 0:00:29]} 36. Qh4 {[%clk 0:00:13]}  Rb1+ {[%clk 0:00:29]} 37. Kg2 {[%clk 0:00:13]}  Rb2+ {[%clk 0:00:27]} 38. Kf3 {[%clk 0:00:13]}  f6 {[%clk 0:00:25]} 39. Ke3 {[%clk 0:00:13]}  Qf7 {[%clk 0:00:20]} 40. Rh5 {[%clk 0:00:10]}  Qg6 {[%clk 0:00:20]} 41. Rf5 {[%clk 0:00:10]}  c4 {[%clk 0:00:20]} 42. dxc4 {[%clk 0:00:10]}  Qf7 {[%clk 0:00:20]} 43. Kf3 {[%clk 0:00:09]}  Rb3+ {[%clk 0:00:18]} 44. Kg2 {[%clk 0:00:09]}  Rb2+ {[%clk 0:00:19]} 45. Kg3 {[%clk 0:00:09]}  Qg6 {[%clk 0:00:18]} 46. Kf3 {[%clk 0:00:09]}  Rb3+ {[%clk 0:00:18]} 47. Kg2 {[%clk 0:00:09]}  Rc3 {[%clk 0:00:19]} 48. Kf2 {[%clk 0:00:09]}  Rxc4 {[%clk 0:00:19]} 49. Kf3 {[%clk 0:00:08]}  Ra4 {[%clk 0:00:20]} 50. Ke3 {[%clk 0:00:09]}  Ra3+ {[%clk 0:00:20]} 51. Kf2 {[%clk 0:00:08]}  Qf7 {[%clk 0:00:21]} 52. Kg2 {[%clk 0:00:08]}  Qa2+ {[%clk 0:00:21]} 53. Rf2 {[%clk 0:00:07]}  Qf7 {[%clk 0:00:21]} 54. Kh2 {[%clk 0:00:07]}  Ra4 {[%clk 0:00:21]} 55. Kg2 {[%clk 0:00:07]}  Rxe4 {[%clk 0:00:21]} 56. Qg3 {[%clk 0:00:06]}  Qg6 {[%clk 0:00:20]} 57. Kh3 {[%clk 0:00:06]}  Qg5 {[%clk 0:00:19]} 58. Rf5 {[%clk 0:00:05]}  Qe3 {[%clk 0:00:16]} 59. Rf3 {[%clk 0:00:03]}  Qe1 {[%clk 0:00:16]} 60. Kh4 {[%clk 0:00:02]}  Qxg3+ {[%clk 0:00:16]} 61. Kxg3 {[%clk 0:00:03]}  Kg6 {[%clk 0:00:17]} 0-1


[Site "https://www.chess.com"]

[Event "Titled Tuesday Blitz March 22 Late 2022"]
[White "Vasquez Schroeder, Rodrigo"]
[Black "Rostovtsev, Dmitry"]
[WhiteFideId "3400042"]
[BlackFideId "34278320"]
[WhiteElo "2561"]
[BlackElo "2359"]
[Result "1-0"]
[Round "03"]
[TimeControl "180+1"]
[Date "2022.03.22"]
[WhiteClock "0:02:15"]
[BlackClock "0:01:17"]

1. e4 {[%clk 0:03:00]}  e5 {[%clk 0:02:57]} 2. Nf3 {[%clk 0:03:00]}  Nc6 {[%clk 0:02:57]} 3. Bb5 {[%clk 0:03:01]}  a6 {[%clk 0:02:56]} 4. Ba4 {[%clk 0:03:02]}  Nf6 {[%clk 0:02:56]} 5. O-O {[%clk 0:03:02]}  Be7 {[%clk 0:02:53]} 6. Re1 {[%clk 0:03:03]}  b5 {[%clk 0:02:50]} 7. Bb3 {[%clk 0:03:03]}  d6 {[%clk 0:02:51]} 8. c3 {[%clk 0:03:03]}  O-O {[%clk 0:02:51]} 9. h3 {[%clk 0:03:03]}  Bb7 {[%clk 0:02:51]} 10. d4 {[%clk 0:03:03]}  Re8 {[%clk 0:02:51]} 11. Nbd2 {[%clk 0:03:04]}  Bf8 {[%clk 0:02:49]} 12. a4 {[%clk 0:03:03]}  h6 {[%clk 0:02:50]} 13. Bc2 {[%clk 0:03:03]}  exd4 {[%clk 0:02:50]} 14. cxd4 {[%clk 0:03:04]}  Nb4 {[%clk 0:02:51]} 15. Bb1 {[%clk 0:03:04]}  c5 {[%clk 0:02:51]} 16. d5 {[%clk 0:03:04]}  Nd7 {[%clk 0:02:51]} 17. Ra3 {[%clk 0:03:04]}  c4 {[%clk 0:02:51]} 18. axb5 {[%clk 0:03:02]}  axb5 {[%clk 0:02:52]} 19. Nd4 {[%clk 0:03:02]}  Rxa3 {[%clk 0:02:52]} 20. bxa3 {[%clk 0:03:02]}  Nd3 {[%clk 0:02:53]} 21. Bxd3 {[%clk 0:03:02]}  cxd3 {[%clk 0:02:54]} 22. Bb2 {[%clk 0:03:01]}  Nc5 {[%clk 0:02:53]} 23. Nf5 {[%clk 0:02:56]}  g6 {[%clk 0:02:48]} 24. Ng3 {[%clk 0:02:53]}  Qa5 {[%clk 0:02:44]} 25. Re3 {[%clk 0:02:49]}  Qa4 {[%clk 0:02:36]} 26. Qc1 {[%clk 0:02:46]}  Bg7 {[%clk 0:02:14]} 27. Bxg7 {[%clk 0:02:44]}  Kxg7 {[%clk 0:02:15]} 28. Qc3+ {[%clk 0:02:41]}  Kf8 {[%clk 0:01:44]} 29. Qh8+ {[%clk 0:02:36]}  Ke7 {[%clk 0:01:45]} 30. Qxh6 {[%clk 0:02:37]}  Qd1+ {[%clk 0:01:45]} 31. Ngf1 {[%clk 0:02:37]}  Ra8 {[%clk 0:01:37]} 32. e5 {[%clk 0:02:32]}  Bxd5 {[%clk 0:01:37]} 33. Qg5+ {[%clk 0:02:29]}  Kd7 {[%clk 0:01:30]} 34. exd6 {[%clk 0:02:29]}  Kc6 {[%clk 0:01:30]} 35. Qe7 {[%clk 0:02:21]}  Rc8 {[%clk 0:01:17]} 36. Re5 {[%clk 0:02:15]} 1-0


[Site "https://www.chess.com"]